fUST/lending_fUST_20240519
["ID","MTS","AMOUNT","RATE_DAILY","PERIOD"]
[327482983,1716108638874,-150.0,0.00018067,3]
[327482984,1716108638883,-500.0,0.00018072,2]
[327482985,1716108638892,-500.0,0.00018072,2]
[327482986,1716108638901,-640.90671266,0.00018072,2]
[327482987,1716108638910,-500.0,0.00018072,2]
[327482988,1716108638919,-500.0,0.00018072,2]
[327482989,1716108638928,-500.0,0.00018072,2]
[327482990,1716108638937,-500.0,0.00018072,2]
[327482991,1716108638947,-500.0,0.00018072,2]
[327482992,1716108638956,-251.64268877,0.00018073,2]
[327482993,1716108638965,-278.3219195,0.00018073,2]
[327482994,1716108638975,-500.0,0.00018073,2]
[327482995,1716108638985,-401.78,0.00018073,2]
[327482996,1716108638994,-500.0,0.00018073,2]
[327482997,1716108639004,-500.0,0.00018073,2]
[327482998,1716108639014,-500.0,0.00018073,2]
[327482999,1716108639024,-1049.79,0.00018073,2]
[327483000,1716108639033,-500.0,0.00018346,2]
[327483001,1716108639043,-500.0,0.00018346,2]
[327483002,1716108639053,-500.0,0.00018346,2]
[327483003,1716108639063,-500.0,0.00018346,2]
[327483004,1716108639073,-500.0,0.00018347,2]
[327483005,1716108639082,-500.0,0.00018347,2]
[327483006,1716108639092,-500.0,0.00018347,2]
[327483007,1716108639102,-337.1,0.00018347,2]
[327483008,1716108639112,-1049.79,0.00018347,2]
[327483009,1716108639121,-500.0,0.0001862,2]
[327483010,1716108639131,-500.0,0.0001862,2]
[327483011,1716108639140,-500.0,0.0001862,2]
[327483012,1716108639150,-500.0,0.0001862,2]
[327483013,1716108639159,-337.76,0.00018621,2]
[327483014,1716108639168,-500.0,0.00018621,2]
[327483015,1716108639176,-500.0,0.00018621,2]
[327483016,1716108639185,-1049.79,0.00018621,2]
[327483017,1716108639194,-500.0,0.00018894,2]
[327483018,1716108639204,-500.0,0.00018894,2]
[327483019,1716108639217,-500.0,0.00018894,2]
[327483020,1716108639228,-500.0,0.00018894,2]
[327483021,1716108639239,-500.0,0.00018895,2]
[327483022,1716108639250,-500.0,0.00018895,2]
[327483023,1716108639259,-1049.79,0.00018895,2]
[327483024,1716108639268,-157.13628382,0.00018918,2]
[327483025,1716108639277,-234.33050576,0.00019,2]
[327483026,1716108639288,-285.74827739,0.00019,2]
[327483027,1716108639299,-155.28665767,0.00019,2]
[327483028,1716108639309,-154.84515485,0.00019,2]
[327483029,1716108639318,-364.9556048,0.00019,2]
[327483030,1716108639328,-229.72469329,0.00019,2]
[327483031,1716108639338,-16148.70396536,0.00019,2]
[327483033,1716108639349,-1457.99841319,0.00019077,2]
[327483034,1716108639359,-184.53539998,0.000191,2]
[327483035,1716108639368,-416.99368853,0.0001911,2]
[327483036,1716108639378,-500.0,0.00019168,2]
[327483037,1716108639388,-500.0,0.00019168,2]
[327483038,1716108639398,-500.0,0.00019168,2]
[327483039,1716108639407,-500.0,0.00019168,2]
[327483040,1716108639417,-500.0,0.00019169,2]
[327483041,1716108639427,-500.0,0.00019169,2]
[327483042,1716108639436,-1049.79,0.00019169,2]
[327483043,1716108639445,-209.47723402,0.00019175,2]
[327483044,1716108639454,-527.32373929,0.00019176,2]
[327483045,1716108639464,-6243.70629401,0.00019177,2]
[327483046,1716108639473,-500.0,0.00019178,2]
[327483047,1716108639482,-500.0,0.00019178,2]
[327483048,1716108639491,-500.0,0.00019178,2]
[327483049,1716108639500,-500.0,0.00019178,2]
[327483050,1716108639510,-500.0,0.00019178,2]
[327483051,1716108639519,-500.0,0.00019178,2]
[327483052,1716108639528,-500.0,0.00019178,2]
[327483053,1716108639537,-500.0,0.00019178,2]
[327483054,1716108639546,-500.0,0.00019178,2]
[327483055,1716108639555,-500.0,0.00019178,2]
[327483056,1716108639563,-452.96713151,0.00019178,2]
[327483057,1716108639571,-500.0,0.00019178,2]
[327483058,1716108639580,-503.18332125,0.00019178,2]
[327483059,1716108639589,-379.39121589,0.00019178,2]
[327483060,1716108639599,-500.0,0.00019178,2]
[327483061,1716108639608,-500.0,0.00019178,2]
[327483062,1716108639617,-473.6239083,0.00019178,2]
[327483063,1716108639627,-500.0,0.00019178,2]
[327483064,1716108639636,-500.0,0.00019178,2]
[327483065,1716108639645,-500.0,0.00019178,2]
[327483066,1716108639655,-500.0,0.00019178,2]
[327483067,1716108639665,-500.0,0.00019178,2]
[327483068,1716108639674,-500.0,0.00019178,2]
[327483069,1716108639683,-500.0,0.00019178,2]
[327483070,1716108639692,-500.0,0.00019178,2]
[327483071,1716108639702,-500.0,0.00019178,2]
[327483072,1716108639711,-500.0,0.00019178,2]
[327483073,1716108639721,-500.0,0.00019178,2]
[327483074,1716108639730,-500.0,0.00019178,2]
[327483075,1716108639739,-500.0,0.00019178,2]
[327483076,1716108639749,-500.0,0.00019178,2]
[327483077,1716108639758,-500.0,0.00019178,2]
[327483078,1716108639767,-500.0,0.00019178,2]
[327483079,1716108639777,-500.0,0.00019178,2]
[327483080,1716108639786,-500.0,0.00019178,2]
[327483081,1716108639796,-500.0,0.00019178,2]
[327483082,1716108639805,-500.0,0.00019178,2]
[327483083,1716108639939,-500.0,0.00019178,2]
[327483084,1716108639948,-500.0,0.00019178,2]
[327483085,1716108639958,-500.0,0.00019178,2]
[327483086,1716108639968,-627.62287106,0.00019178,2]
[327483087,1716108639977,-500.0,0.00019178,2]
[327483088,1716108639986,-500.0,0.00019178,2]
[327483089,1716108639995,-500.0,0.00019178,2]
[327483090,1716108640004,-500.0,0.00019178,2]
[327483091,1716108640015,-500.0,0.00019178,2]
[327483092,1716108640024,-500.0,0.00019178,2]
[327483093,1716108640033,-298.05685769,0.00019178,2]
[327483094,1716108640043,-622.38219746,0.00019178,2]
[327483095,1716108640053,-500.0,0.00019178,2]
[327483096,1716108640063,-500.0,0.00019178,2]
[327483097,1716108640072,-500.0,0.00019178,2]
[327483098,1716108640082,-500.0,0.00019178,2]
[327483099,1716108640092,-500.0,0.00019178,2]
[327483100,1716108640102,-500.0,0.00019178,2]
[327483101,1716108640111,-500.0,0.00019178,2]
[327483102,1716108640120,-500.0,0.00019178,2]
[327483103,1716108640129,-500.0,0.00019178,2]
[327483104,1716108640139,-500.0,0.00019178,2]
[327483105,1716108640148,-500.0,0.00019178,2]
[327483106,1716108640157,-500.0,0.00019178,2]
[327483107,1716108640166,-350.0,0.00019178,2]
[327483108,1716108640176,-500.0,0.00019178,2]
[327483109,1716108640185,-500.0,0.00019178,2]
[327483110,1716108640194,-500.0,0.00019178,2]
[327483111,1716108640204,-500.0,0.00019178,2]
[327483112,1716108640217,-500.0,0.00019178,2]
[327483113,1716108640226,-500.0,0.00019178,2]
[327483114,1716108640235,-500.0,0.00019178,2]
[327483115,1716108640244,-500.0,0.00019178,2]
[327483116,1716108640255,-500.0,0.00019178,2]
[327483117,1716108640264,-500.0,0.00019178,2]
[327483118,1716108640273,-366.01294074,0.00019178,2]
[327483119,1716108640282,-500.0,0.00019178,2]
[327483120,1716108640294,-299.36876224,0.00019178,2]
[327483121,1716108640303,-500.0,0.00019178,2]
[327483122,1716108640312,-500.0,0.00019178,2]
[327483123,1716108640321,-500.0,0.00019178,2]
[327483124,1716108640331,-500.0,0.00019178,2]
[327483125,1716108640340,-500.0,0.00019178,2]
[327483126,1716108640350,-500.0,0.00019178,2]
[327483127,1716108640359,-500.0,0.00019178,2]
[327483128,1716108640368,-500.0,0.00019178,2]
[327483129,1716108640377,-500.0,0.00019178,2]
[327483130,1716108640387,-500.0,0.00019178,2]
[327483131,1716108640397,-200.0,0.00019178,2]
[327483132,1716108640406,-500.0,0.00019178,2]
[327483133,1716108640416,-500.0,0.00019178,2]
[327483134,1716108640425,-500.0,0.00019178,2]
[327483135,1716108640434,-500.0,0.00019178,2]
[327483136,1716108640444,-500.0,0.00019178,2]
[327483137,1716108640453,-500.0,0.00019178,2]
[327483138,1716108640463,-500.0,0.00019178,2]
[327483139,1716108640472,-500.0,0.00019178,2]
[327483140,1716108640482,-500.0,0.00019178,2]
[327483141,1716108640491,-500.0,0.00019178,2]
[327483142,1716108640500,-500.0,0.00019178,2]
[327483143,1716108640510,-500.0,0.00019178,2]
[327483144,1716108640519,-500.0,0.00019178,2]
[327483145,1716108640528,-500.0,0.00019178,2]
[327483146,1716108640538,-500.0,0.00019178,2]
[327483147,1716108640547,-500.0,0.00019178,2]
[327483148,1716108640557,-453.46503564,0.00019178,2]
[327483149,1716108640566,-500.0,0.00019178,2]
[327483150,1716108640575,-500.0,0.00019178,2]
[327483151,1716108640585,-500.0,0.00019178,2]
[327483152,1716108640594,-500.0,0.00019178,2]
[327483153,1716108640604,-500.0,0.00019178,2]
[327483154,1716108640613,-151.0,0.00019178,2]
[327483155,1716108640622,-151.0,0.00019178,2]
[327483156,1716108640632,-193.930173,0.00019178,2]
[327483157,1716108640641,-161.020628,0.00019178,2]
[327483158,1716108640651,-298.260926,0.00019178,2]
[327483159,1716108640661,-437.7164516,0.00019178,4]
[327483160,1716108640670,-500.0,0.00019442,2]
[327483161,1716108640680,-500.0,0.00019442,2]
[327483162,1716108640689,-500.0,0.00019442,2]
[327483163,1716108640699,-500.0,0.00019442,2]
[327483164,1716108640708,-500.0,0.00019443,2]
[327483165,1716108640718,-500.0,0.00019443,2]
[327483166,1716108640727,-1049.79,0.00019443,2]
[327483167,1716108640737,-153.775416,0.00019715,2]
[327483168,1716108640746,-151.0,0.00019715,2]
[327483169,1716108640756,-157.022321,0.00019715,2]
[327483170,1716108640765,-151.0,0.00019715,2]
[327483171,1716108640774,-151.0,0.00019715,2]
[327483172,1716108640784,-151.0,0.00019715,2]
[327483173,1716108640795,-151.0,0.00019715,2]
[327483174,1716108640804,-151.0,0.00019715,2]
[327483175,1716108640813,-401.235143,0.00019715,2]
[327483176,1716108640824,-401.235143,0.00019715,2]
[327483177,1716108640833,-401.235143,0.00019715,2]
[327483178,1716108640843,-401.235143,0.00019715,2]
[327483179,1716108640853,-151.0,0.00019715,2]
[327483180,1716108640863,-295.377198,0.00019715,2]
[327483181,1716108640872,-2804.33469873,0.00019716,3]
[327483182,1716108640882,-171.493584,0.00019716,2]
[327483183,1716108640892,-171.493584,0.00019716,2]
[327483184,1716108640901,-171.493584,0.00019716,2]
[327483185,1716108640910,-171.493584,0.00019716,2]
[327483186,1716108640920,-333.819638,0.00019716,2]
[327483187,1716108640929,-333.819638,0.00019716,2]
[327483188,1716108640938,-333.819638,0.00019716,2]
[327483189,1716108640947,-333.819638,0.00019716,2]
[327483190,1716108640958,-163.521809,0.00019716,2]
[327483191,1716108640967,-500.0,0.00019716,2]
[327483192,1716108640977,-500.0,0.00019716,2]
[327483193,1716108640987,-500.0,0.00019716,2]
[327483194,1716108640997,-500.0,0.00019716,2]
[327483195,1716108641006,-151.0,0.00019717,2]
[327483196,1716108641016,-500.0,0.00019717,2]
[327483197,1716108641025,-500.0,0.00019717,2]
[327483198,1716108641035,-1049.79,0.00019717,2]
[327483199,1716108641045,-151.0,0.00019717,2]
[327483200,1716108641054,-401.235143,0.00019717,2]
[327483201,1716108641064,-401.235143,0.00019717,2]
[327483202,1716108641074,-478.50921599,0.000199,2]
[327483203,1716108641083,-291.99039276,0.000199,2]
[327483204,1716108641093,-291.99039276,0.000199,2]
[327483205,1716108641103,-291.99039276,0.000199,2]
[327483206,1716108641112,-291.99039276,0.000199,2]
[327483207,1716108641122,-291.99039276,0.000199,2]
[327483208,1716108641131,-171.493584,0.0001999,2]
[327483209,1716108641141,-171.493584,0.0001999,2]
[327483210,1716108641151,-333.819638,0.0001999,2]
[327483211,1716108641160,-333.819638,0.0001999,2]
[327483212,1716108641170,-500.0,0.0001999,2]
[327483213,1716108641179,-500.0,0.0001999,2]
[327483214,1716108641188,-500.0,0.0001999,2]
[327483215,1716108641197,-500.0,0.0001999,2]
[327483216,1716108641207,-500.0,0.00019991,2]
[327483217,1716108641220,-500.0,0.00019991,2]
[327483218,1716108641230,-1049.79,0.00019991,2]
[327483219,1716108641241,-151.0,0.00019995,2]
[327483220,1716108641250,-236.014741,0.00019996,2]
[327483221,1716108641261,-236.014741,0.00019996,2]
[327483222,1716108641271,-236.014741,0.00019996,2]
[327483223,1716108641280,-236.014741,0.00019996,2]
[327483224,1716108641289,-151.0,0.00019996,2]
[327483225,1716108641301,-1250.0,0.0002,3]
[327483226,1716108641313,-2058.37730382,0.0002,2]
[327483227,1716108641323,-240.34533742,0.0002,2]
[327483228,1716108641333,-130557.39731618,0.0002,2]
[327483229,1716108641344,-154.84515485,0.0002,2]
[327483230,1716108641356,-400.0,0.0002,2]
[327483231,1716108641365,-462.97870343,0.0002,2]
[327483232,1716108641374,-309.60728046,0.0002,2]
[327483233,1716108641384,-280.63732434,0.0002,2]
[327483234,1716108641394,-154.84515485,0.0002,2]
[327483235,1716108641404,-282.54209603,0.0002,2]
[327483236,1716108641414,-157.4607927,0.0002,2]
[327483237,1716108641425,-155.45932957,0.0002,2]
[327483238,1716108641435,-178.5,0.0002,2]
[327483239,1716108641445,-154.84515485,0.0002,2]
[327483240,1716108641455,-286.27861761,0.0002,2]
[327483241,1716108641465,-168.22384721,0.0002,2]
[327483242,1716108641476,-172.67434371,0.0002,2]
[327483243,1716108641486,-154.84515485,0.0002,2]
[327483244,1716108641495,-160.0,0.0002,2]
[327483245,1716108641506,-154.84515485,0.0002,2]
[327483246,1716108641516,-151.34866798,0.0002,2]
[327483247,1716108641527,-236.014741,0.0002,2]
[327483248,1716108641537,-236.014741,0.0002,2]
[327483249,1716108641546,-151.0,0.0002,2]
[327483250,1716108641555,-171.493584,0.0002,2]
[327483251,1716108641564,-171.493584,0.0002,2]
[327483252,1716108641573,-333.819638,0.0002,2]
[327483253,1716108641583,-333.819638,0.0002,2]
[327483254,1716108641594,-151.0,0.0002,2]
[327483255,1716108641604,-401.235143,0.0002,2]
[327483256,1716108641613,-401.235143,0.0002,2]
[327483257,1716108641623,-200.0,0.0002,2]
[327483258,1716108641632,-15449.52934739,0.00020165,3]
[327483259,1716108641642,-500.0,0.00020264,2]
[327483260,1716108641651,-500.0,0.00020264,2]
[327483261,1716108641660,-500.0,0.00020264,2]
[327483262,1716108641669,-500.0,0.00020264,2]
[327483263,1716108641679,-500.0,0.00020265,2]
[327483264,1716108641687,-1049.79,0.00020265,2]
[327483265,1716108641696,-392.24099047,0.000203,2]
[327483266,1716108641705,-500.0,0.00020538,2]
[327483267,1716108641714,-500.0,0.00020538,2]
[327483268,1716108641723,-500.0,0.00020538,2]
[327483269,1716108641732,-500.0,0.00020538,2]
[327483270,1716108641741,-282.92932883,0.00020539,2]
[327483271,1716108641750,-1049.79,0.00020539,2]
[327483272,1716108641759,-500.0,0.00020812,2]
[327483273,1716108641768,-500.0,0.00020812,2]
[327483274,1716108641778,-500.0,0.00020812,2]
[327483275,1716108641787,-500.0,0.00020812,2]
[327483276,1716108641797,-1049.79,0.00020813,2]
[327483277,1716108641807,-280.0,0.00021,2]
[327483278,1716108641816,-237.25347528,0.00021,2]
[327483279,1716108641826,-197.78786316,0.00021,2]
[327483280,1716108641836,-500.0,0.00021086,2]
[327483281,1716108641845,-500.0,0.00021086,2]
[327483282,1716108641855,-500.0,0.00021086,2]
[327483283,1716108641864,-500.0,0.00021086,2]
[327483284,1716108641873,-1049.79,0.00021087,2]
[327483285,1716108641884,-500.0,0.0002136,2]
[327483286,1716108641893,-500.0,0.0002136,2]
[327483287,1716108641903,-500.0,0.0002136,2]
[327483288,1716108641912,-500.0,0.0002136,2]
[327483289,1716108641921,-1049.79,0.00021361,2]
[327483290,1716108641931,-3773.32391887,0.000215,6]
[327483291,1716108641941,-236.014741,0.000215,2]
[327483292,1716108641950,-236.014741,0.000215,2]
[327483293,1716108641960,-151.0,0.000215,2]
[327483294,1716108641969,-171.493584,0.000215,2]
[327483295,1716108641980,-171.493584,0.000215,2]
[327483296,1716108641990,-333.819638,0.000215,2]
[327483297,1716108642000,-333.819638,0.000215,2]
[327483298,1716108642009,-151.0,0.000215,2]
[327483299,1716108642019,-401.235143,0.000215,2]
[327483300,1716108642029,-401.235143,0.000215,2]
[327483301,1716108642038,-500.0,0.00021634,2]
[327483302,1716108642048,-500.0,0.00021634,2]
[327483303,1716108642057,-500.0,0.00021634,2]
[327483304,1716108642067,-512.0149194,0.00021634,2]
[327483305,1716108642076,-1049.79,0.00021635,2]
[327483306,1716108642086,-150.0,0.00021808,2]
[327483307,1716108642095,-500.0,0.00021908,2]
[327483308,1716108642106,-500.0,0.00021908,2]
[327483309,1716108642115,-500.0,0.00021908,2]
[327483310,1716108642125,-1049.79,0.00021909,2]
[327483311,1716108642135,-302.60963508,0.00021917,2]
[327483312,1716108642145,-166.666666,0.00021918,2]
[327483313,1716108642155,-151.0,0.00021918,2]
[327483314,1716108642165,-151.0,0.00021918,2]
[327483315,1716108642174,-151.074698,0.00021918,2]
[327483316,1716108642184,-163.737682,0.00021918,2]
[327483317,1716108642195,-306.50201242,0.00022,2]
[327483318,1716108642204,-154.84515485,0.00022,14]
[327483319,1716108642218,-171.07460216,0.00022,2]
[327483320,1716108642228,-154.84515485,0.00022,2]
[327483321,1716108642238,-496.0,0.00022006,2]
[327483322,1716108642248,-150.0,0.00022006,2]
[327483323,1716108642259,-222.35764879,0.00022182,2]
[327483324,1716108642269,-500.0,0.00022182,2]
[327483325,1716108642278,-500.0,0.00022182,2]
[327483326,1716108642290,-1049.79,0.00022183,2]
[327483327,1716108642301,-166.666666,0.00022431,2]
[327483328,1716108642311,-500.0,0.00022456,2]
[327483329,1716108642321,-500.0,0.00022456,2]
[327483330,1716108642330,-1049.79,0.00022457,2]
[327483331,1716108642340,-287.78833678,0.000225,2]
[327483332,1716108642350,-500.0,0.0002273,2]
[327483333,1716108642360,-500.0,0.0002273,2]
[327483334,1716108642370,-1049.79,0.00022731,2]
[327483335,1716108642380,-166.666666,0.00022944,2]
[327483336,1716108642389,-9005.41522127,0.00023,2]
[327483337,1716108642400,-154.84515485,0.00023,2]
[327483338,1716108642409,-221.031457,0.00023,2]
[327483339,1716108642419,-171.493584,0.00023,2]
[327483340,1716108642428,-171.493584,0.00023,2]
[327483341,1716108642438,-333.819638,0.00023,2]
[327483342,1716108642448,-333.819638,0.00023,2]
[327483344,1716108642458,-151.0,0.00023,2]
[327483345,1716108642467,-401.235143,0.00023,2]
[327483346,1716108642477,-401.235143,0.00023,2]
[327483347,1716108642487,-500.0,0.00023004,2]
[327483348,1716108642497,-500.0,0.00023004,2]
[327483349,1716108642507,-236.014741,0.00023005,2]
[327483351,1716108642516,-236.014741,0.00023005,2]
[327483353,1716108642526,-1049.79,0.00023005,2]
[327483355,1716108642535,-474.81,0.00023278,2]
[327483357,1716108642544,-500.0,0.00023278,2]
[327483358,1716108642555,-1049.79,0.00023279,2]
[327483361,1716108642565,-166.666666,0.00023456,2]
[327483362,1716108642576,-500.0,0.00023552,2]
[327483363,1716108642586,-1049.79,0.00023553,2]
[327483364,1716108642597,-481.72,0.00023826,2]
[327483365,1716108642608,-1049.81941064,0.00023827,2]
[327483366,1716108642619,-166.666666,0.00023969,2]
[327483367,1716108642629,-646.56473113,0.00024,2]
[327483371,1716108642731,-750.0,0.00024384,2]
[327483372,1716108642740,-166.666666,0.00024482,2]
[327483373,1716108642751,-151.42809672,0.00024505,2]
[327483374,1716108642761,-212.01768204,0.0002451,2]
[327483375,1716108642770,-155.06144088,0.00024572,2]
[327483376,1716108642780,-212.01768204,0.00024572,2]
[327483377,1716108642790,-151.42809672,0.00024583,2]
[327483378,1716108642800,-212.01768204,0.00024586,2]
[327483379,1716108642810,-212.01768204,0.00024593,2]
[327483380,1716108642819,-212.01768204,0.00024595,2]
[327483381,1716108642829,-212.01768204,0.00024603,2]
[327483383,1716108642839,-155.06144088,0.00024623,2]
[327483385,1716108642848,-476.820335,0.0002463,2]
[327483386,1716108642858,-151.42809672,0.00024633,2]
[327483388,1716108642868,-200.0,0.00024658,15]
[327483390,1716108642878,-380.0,0.00024658,2]
[327483392,1716108642887,-212.01768204,0.00024689,2]
[327483394,1716108642896,-155.06144088,0.00024728,2]
[327483396,1716108642906,-153.46759656,0.0002473,2]
[327483398,1716108642915,-212.01768204,0.00024752,2]
[327483400,1716108642925,-620.00000028,0.00024774,2]
[327483402,1716108642934,-151.42809672,0.00024789,2]
[327483404,1716108642943,-153.46759656,0.000248,2]
[327483406,1716108642952,-212.01768204,0.00024805,2]
[327483408,1716108642962,-150.0,0.00024808,2]
[327483410,1716108642971,-153.46759656,0.00024815,2]
[327483411,1716108642981,-173.59375827,0.00024816,2]
[327483413,1716108642990,-151.42809672,0.00024831,2]
[327483415,1716108643001,-150.0,0.00024832,2]
[327483417,1716108643012,-158.74085955,0.0002486,2]
[327483419,1716108643021,-229.99565144,0.00024863,2]
[327483421,1716108643031,-212.01768204,0.00024896,2]
[327483423,1716108643040,-212.01768204,0.00024917,2]
[327483426,1716108643050,-153.46759656,0.00024926,2]
[327483428,1716108643060,-155.06144088,0.0002495,2]
[327483430,1716108643069,-212.01768204,0.00024965,2]
[327483432,1716108643078,-212.01768204,0.00024975,2]
[327483434,1716108643087,-150.0,0.00025,2]
[327483436,1716108643097,-190.68458154,0.00025,2]
[327483438,1716108643107,-321.31649836,0.00025,2]
[327483440,1716108643116,-769.03569215,0.00025,2]
[327483442,1716108643126,-604.79521153,0.00025,2]
[327483444,1716108643135,-323.01639172,0.00025,2]
[327483446,1716108643144,-496.0,0.00025006,2]
[327483448,1716108643154,-150.0,0.00025006,2]
[327483450,1716108643162,-155.06144088,0.00025014,2]
[327483451,1716108643171,-151.42809672,0.00025022,2]
[327483454,1716108643181,-212.01768204,0.00025147,2]
[327483455,1716108643190,-153.46759656,0.00025177,2]
[327483457,1716108643200,-212.01768204,0.0002518,2]
[327483460,1716108643210,-212.01768204,0.00025203,2]
[327483461,1716108643224,-212.01768204,0.00025216,2]
[327483464,1716108643234,-151.42809672,0.00025243,2]
[327483465,1716108643243,-153.46759656,0.0002527,2]
[327483467,1716108643254,-173.59375828,0.00025277,2]
[327483470,1716108643264,-212.01768204,0.00025314,2]
[327483471,1716108643274,-253.64271635,0.00025365,2]
[327483473,1716108643283,-212.01768204,0.00025453,2]
[327483475,1716108643293,-151.0,0.00025453,2]
[327483477,1716108643305,-401.235143,0.00025453,2]
[327483478,1716108643314,-401.235143,0.00025453,2]
[327483480,1716108643323,-153.46759656,0.00025515,2]
[327483482,1716108643332,-151.42809672,0.0002553,2]
[327483483,1716108643342,-333.819638,0.00025544,2]
[327483484,1716108643351,-333.819638,0.00025544,2]
[327483485,1716108643360,-200.30832996,0.00025563,2]
[327483486,1716108643369,-155.06144088,0.00025596,2]
[327483487,1716108643379,-171.493584,0.00025597,2]
[327483488,1716108643390,-171.493584,0.00025597,2]
[327483489,1716108643400,-200.30832996,0.0002567,2]
[327483490,1716108643409,-157.13628379,0.00025727,2]
[327483491,1716108643418,-212.01768204,0.00025764,2]
[327483492,1716108643429,-210.5159742,0.00025786,3]
[327483493,1716108643440,-212.01768204,0.00025821,2]
[327483494,1716108643449,-212.01768204,0.00025874,2]
[327483495,1716108643458,-212.01768204,0.00025922,2]
[327483496,1716108643468,-212.01768204,0.00025931,2]
[327483497,1716108643478,-151.42809672,0.0002595,2]
[327483498,1716108643489,-212.01768204,0.00025951,2]
[327483499,1716108643499,-212.01768204,0.00025974,2]
[327483500,1716108643508,-155.06144088,0.00025997,2]
[327483501,1716108643517,-1019.15478625,0.00026,2]
[327483502,1716108643527,-620.00000001,0.00026012,2]
[327483503,1716108643536,-212.01768204,0.00026039,2]
[327483504,1716108643546,-153.46759656,0.00026049,2]
[327483505,1716108643555,-230.29953031,0.00026153,2]
[327483506,1716108643565,-158.74085957,0.00026157,2]
[327483507,1716108643575,-155.06144088,0.00026204,2]
[327483508,1716108643584,-500.0,0.000263,2]
[327483509,1716108643593,-155.06144088,0.00026309,2]
[327483510,1716108643603,-151.42809672,0.00026309,2]
[327483511,1716108643612,-212.01768204,0.00026325,2]
[327483512,1716108643621,-153.46759656,0.00026341,2]
[327483513,1716108643630,-212.01768204,0.00026347,2]
[327483514,1716108643639,-298.260926,0.00026388,2]
[327483515,1716108643648,-151.42809672,0.00026471,2]
[327483516,1716108643657,-153.46759656,0.00026491,2]
[327483517,1716108643666,-236.014741,0.00026497,2]
[327483518,1716108643676,-236.014741,0.00026497,2]
[327483519,1716108643685,-212.0176822,0.00026524,2]
[327483520,1716108643694,-151.42809683,0.00026534,2]
[327483521,1716108643703,-150.81901718,0.00026699,2]
[327483522,1716108643712,-171.493584,0.00027297,2]
[327483523,1716108643721,-171.493584,0.00027297,2]
[327483524,1716108643732,-200.21948709,0.00027397,2]
[327483525,1716108643741,-460.61582416,0.00027397,20]
[327483526,1716108643751,-236.014741,0.00027397,2]
[327483527,1716108643760,-236.014741,0.00027397,2]
[327483528,1716108643769,-236.014741,0.00027397,2]
[327483529,1716108643778,-236.014741,0.00027397,2]
[327483530,1716108643787,-171.493584,0.00027397,2]
[327483531,1716108643796,-171.493584,0.00027397,2]
[327483532,1716108643806,-333.819638,0.00027397,2]
[327483533,1716108643816,-333.819638,0.00027397,2]
[327483534,1716108643825,-333.819638,0.00027397,2]
[327483535,1716108643834,-333.819638,0.00027397,2]
[327483536,1716108643844,-500.0,0.00027397,2]
[327483537,1716108643854,-500.0,0.00027397,2]
[327483538,1716108643863,-500.0,0.00027397,2]
[327483539,1716108643873,-500.0,0.00027397,2]
[327483540,1716108643884,-500.0,0.00027397,2]
[327483541,1716108643894,-500.0,0.00027397,2]
[327483542,1716108643903,-600.00000001,0.00027397,2]